bitfinex/quotes_BTCUSD_20251219
["timestamp","ask_amount","ask_price","bid_price","bid_amount"]
[1766129637470,0.12552772,87891.0,87880.0,0.00572]
[1766129637678,0.11415,87889.0,87880.0,0.00572]
[1766129638550,0.12552798,87889.0,87880.0,0.00572]
[1766129638760,0.11415,87890.0,87876.0,0.00572]
[1766129639782,0.12552785,87890.0,87876.0,0.00572]
[1766129640078,0.12502798,87889.0,87876.0,0.00572]
[1766129640758,0.94786072,87890.0,87865.0,0.04556]
[1766129640968,0.01138057,87869.0,87856.0,0.00572]
[1766129641137,0.01138057,87869.0,87849.0,0.11319]
[1766129641138,0.00572,87872.0,87857.0,0.00572]
[1766129641374,0.22755717,87890.0,87873.0,0.11319]
[1766129641525,0.22755178,87893.0,87873.0,0.11319]
[1766129641885,0.2389191,87896.0,87873.0,0.11319]
[1766129642078,0.01709759,87892.0,87876.0,0.03643153]
[1766129642338,0.00010952,87896.0,87877.0,0.11891]
[1766129642545,0.01709682,87898.0,87892.0,0.0011]
[1766129642900,0.34166155,87908.0,87884.0,0.00572]
[1766129642901,0.01137591,87905.0,87893.0,0.11319]
[1766129643101,0.01137617,87903.0,87893.0,0.11329952]
[1766129643744,0.01137527,87910.0,87893.0,0.11329952]
[1766129644097,0.00572,87909.0,87893.0,0.11329952]
[1766129645069,0.01137552,87908.0,87893.0,0.11329952]
[1766129645776,0.01137565,87907.0,87893.0,0.11329952]
[1766129646041,0.01137708,87896.0,87869.0,0.11586]
[1766129646261,0.01137708,87896.0,87868.0,0.04556]
[1766129646262,0.11333,87880.0,87868.0,0.04556]
[1766129646471,0.01137915,87880.0,87859.0,0.11586]
[1766129646677,0.11333,87876.0,87862.0,0.00572]
[1766129646891,0.11905,87875.0,87862.0,0.00572]
[1766129647104,0.01137993,87874.0,87862.0,0.00572]
[1766129647336,0.12470993,87874.0,87862.0,0.00572]
[1766129647561,0.11333,87873.0,87862.0,0.00572]
[1766129647772,0.00572,87875.0,87862.0,0.00572]
[1766129648538,0.00572,87874.0,87862.0,0.12158]
[1766129648943,0.00572,87880.0,87874.0,0.0011]
[1766129649172,0.00572,87883.0,87873.0,0.11586]
[1766129650695,0.11333,87888.0,87873.0,0.11586]
[1766129650894,0.00572,87885.0,87873.0,0.11586]
[1766129652165,0.00572,87886.0,87873.0,0.11586]
[1766129653374,0.00572,87886.0,87863.0,0.03643153]
[1766129653375,0.00010946,87896.0,87886.0,0.0011]
[1766129653546,0.00582946,87896.0,87887.0,0.11586]
[1766129654104,0.01720654,87896.0,87887.0,0.11586]
[1766129654332,0.00582946,87896.0,87887.0,0.11586]
[1766129654934,0.00582946,87896.0,87884.0,0.00572]
[1766129654935,0.01137759,87892.0,87884.0,0.00572]
[1766129655148,0.11333,87895.0,87884.0,0.00572]
[1766129655345,0.12470721,87895.0,87884.0,0.00572]
[1766129655509,0.11333,87895.0,87884.0,0.00572]
[1766129656287,0.00582946,87896.0,87884.0,0.12158]
[1766129657373,0.00582946,87896.0,87886.0,0.11586]
[1766129657886,0.00010946,87896.0,87886.0,0.11586]
[1766129659257,0.11333,87895.0,87884.0,0.00572]
[1766129659461,0.12470759,87892.0,87875.0,0.11586]
[1766129659662,0.11333,87891.0,87878.0,0.00572]
[1766129659907,0.11333,87888.0,87878.0,0.00572]
[1766129660135,0.23894148,87888.0,87878.0,0.00572]
[1766129660356,0.11333,87887.0,87872.0,0.00572]
[1766129660994,0.12470824,87887.0,87872.0,0.00572]
[1766129661656,0.0113785,87885.0,87872.0,0.00572]
[1766129661808,0.12470876,87883.0,87872.0,0.00572]
[1766129662013,0.11333,87883.0,87872.0,0.00572]
[1766129663396,0.12470915,87880.0,87863.0,0.03643153]
[1766129663607,0.11333,87876.0,87866.0,0.00572]
[1766129663780,0.12470967,87876.0,87866.0,0.00572]
[1766129663983,0.11333,87872.0,87850.0,0.11586]
[1766129664182,0.09480501,87872.0,87851.0,0.12158]
[1766129664995,0.10618519,87872.0,87851.0,0.12158]
[1766129665402,0.01138018,87872.0,87851.0,0.12158]
[1766129665635,0.01710005,87873.0,87851.0,0.12158]
[1766129665771,0.01138018,87872.0,87851.0,0.12158]
[1766129665976,0.01710005,87873.0,87851.0,0.12158]
[1766129666177,0.11333,87872.0,87851.0,0.12158]
[1766129666398,0.01137915,87880.0,87853.0,0.10704]
[1766129666607,0.00572,87879.0,87865.0,0.11586]
[1766129666811,0.00572,87882.0,87867.0,0.11586]
[1766129667018,0.11333,87881.0,87867.0,0.11586]
[1766129667647,0.11905,87881.0,87867.0,0.11586]
[1766129667844,0.00572,87881.0,87867.0,0.11586]
[1766129668046,0.11333,87880.0,87867.0,0.11586]
[1766129669113,0.12470915,87880.0,87867.0,0.11586]
[1766129669942,0.01137928,87879.0,87867.0,0.11586]
[1766129670188,0.01137954,87877.0,87866.0,0.00572]
[1766129670406,0.01137941,87878.0,87866.0,0.00572]
[1766129670622,0.12470941,87878.0,87866.0,0.00572]
[1766129670831,0.01137915,87880.0,87847.0,0.03643153]
[1766129670832,0.11333,87867.0,87852.0,0.00572]
[1766129672063,0.11333,87867.0,87852.0,0.00582954]
[1766129672276,0.11333,87867.0,87852.0,0.12168954]
[1766129672538,0.11223,87867.0,87852.0,0.12168954]
[1766129672936,0.00572,87868.0,87852.0,0.13307232]
[1766129673149,0.00572,87868.0,87854.0,0.12724252]
[1766129673352,0.00572,87868.0,87855.0,0.12724239]
[1766129673609,0.00572,87872.0,87855.0,0.11586]
[1766129673821,0.00572,87872.0,87856.0,0.01138226]
[1766129674024,0.00572,87872.0,87856.0,0.12724226]
[1766129674434,0.0113785,87885.0,87858.0,0.11586]
[1766129674572,0.11333,87876.0,87859.0,0.01937824]
[1766129674778,0.11905,87875.0,87859.0,0.01937824]
[1766129675436,0.11333,87875.0,87859.0,0.01937824]
[1766129675612,0.11333,87875.0,87859.0,0.00572]
[1766129676019,0.11333,87875.0,87860.0,0.11591]
[1766129677505,0.00104,87872.0,87860.0,0.11591]
[1766129678224,0.01138031,87871.0,87860.0,0.11591]
[1766129678414,0.22760637,87871.0,87859.0,0.00572]
[1766129678657,0.22760637,87871.0,87852.0,0.11601954]
[1766129678658,0.0011,87860.0,87852.0,0.11601954]
[1766129678873,0.11341,87865.0,87852.0,0.11601954]
[1766129678874,0.09598335,87865.0,87855.0,0.00572]
[1766129679551,0.00572,87871.0,87857.0,0.11591]
[1766129680572,0.01242018,87872.0,87857.0,0.11591]
[1766129680573,0.00104,87872.0,87857.0,0.11591]
[1766129680909,0.11445,87872.0,87857.0,1.11591]
[1766129683586,0.00104,87872.0,87858.0,0.11591]
[1766129683817,0.00572,87875.0,87872.0,6e-05]
[1766129684040,0.11913,87877.0,87872.0,6e-05]
[1766129684215,0.11913,87877.0,87863.0,0.12163]
[1766129685275,0.2275986,87874.0,87863.0,0.00572]
[1766129685489,0.2275986,87874.0,87857.0,1.0]
[1766129685490,0.11341,87871.0,87864.0,0.00572]
[1766129685760,0.11341,87869.0,87859.0,0.00572]
[1766129687337,0.11291,87869.0,87859.0,0.00572]
[1766129688324,0.11291,87869.0,87857.0,1.0]
[1766129688532,0.11291,87869.0,87857.0,1.00572]
[1766129689209,0.01710031,87871.0,87857.0,1.00468]
[1766129689431,0.12479044,87870.0,87857.0,1.00468]
[1766129689835,0.11341,87869.0,87857.0,1.00468]
[1766129690292,0.11341,87869.0,87857.0,0.99896]
[1766129693186,0.03643153,87867.0,87857.0,0.02069]
[1766129693419,0.01138148,87862.0,87845.0,0.00572]
[1766129693613,0.01138148,87862.0,87842.0,0.1246]
[1766129693614,0.01138213,87857.0,87842.0,0.1246]
[1766129693844,0.011382,87858.0,87846.0,0.00572]
[1766129694047,0.23901479,87861.0,87847.0,0.00572]
[1766129694181,0.01138174,87860.0,87847.0,0.00572]
[1766129694386,0.00572,87862.0,87847.0,0.00572]
[1766129694387,0.01710148,87862.0,87847.0,0.00572]
[1766129694569,0.00572,87862.0,87847.0,0.13032]
[1766129695135,0.01710148,87862.0,87847.0,0.00572]
[1766129695347,0.00572,87863.0,87848.0,0.1246]
[1766129696496,0.00572,87863.0,87848.0,0.11591]
[1766129696840,0.00572,87862.0,87849.0,0.1246]
[1766129697017,0.00582942,87862.0,87849.0,0.1246]
[1766129697222,0.00582942,87862.0,87848.0,0.11591]
[1766129698895,0.00010942,87862.0,87849.0,0.1246]
[1766129700113,0.00010942,87862.0,87849.0,0.24051]
[1766129700332,0.00010942,87862.0,87850.0,0.1246]
[1766129700532,4.2e-07,87862.0,87850.0,1.34916192]
[1766129700737,4.2e-07,87862.0,87851.0,0.03643153]
[1766129700940,4.2e-07,87862.0,87855.0,0.1246]
[1766129701173,4.2e-07,87862.0,87858.0,0.11591]
[1766129701366,4.2e-07,87862.0,87861.0,0.1246]
[1766129701526,4.2e-07,87862.0,87861.0,0.13825793]
[1766129701725,4.2e-07,87862.0,87861.0,0.25416793]
[1766129701924,4.2e-07,87862.0,87861.0,0.24051]
[1766129702824,4.2e-07,87862.0,87861.0,0.25416793]
[1766129702976,4.2e-07,87862.0,87861.0,0.24051]
[1766129703178,0.00572,87888.0,87860.0,0.22763317]
[1766129703179,0.00572,87888.0,87866.0,0.01138096]
[1766129703386,0.00572,87888.0,87870.0,0.91048505]
[1766129703593,0.00572,87888.0,87871.0,0.227]
[1766129704111,0.00572,87888.0,87870.0,0.91048505]
[1766129704324,0.00572,87888.0,87873.0,0.11432]
[1766129704517,0.04556,87894.0,87874.0,0.13205591]
[1766129704718,0.00010952,87894.0,87879.0,0.11432]
[1766129704928,0.00010952,87894.0,87885.0,0.11268]
[1766129705138,0.05693552,87908.0,87892.0,0.11998]
[1766129705477,0.01137565,87907.0,87892.0,0.24311]
[1766129705637,0.01137578,87906.0,87892.0,0.24311]
[1766129705859,0.04556,87908.0,87892.0,0.24311]
[1766129706017,0.04556,87908.0,87893.0,0.11741]
[1766129706789,0.01137565,87907.0,87893.0,0.11741]
[1766129707157,0.000109,87893.0,87892.0,0.00572]
[1766129707585,0.01137604,87904.0,87892.0,0.00572]
[1766129707782,0.0113763,87902.0,87892.0,0.00572]
[1766129707955,0.01137643,87901.0,87887.0,0.11741]
[1766129708157,0.22751581,87906.0,87888.0,0.00572]
[1766129708451,0.01137617,87903.0,87889.0,0.00572]
[1766129708583,0.01137669,87899.0,87889.0,0.005611]
[1766129708981,0.01137656,87900.0,87889.0,0.005611]
[1766129709332,0.01137656,87900.0,87888.0,0.00010952]
[1766129709530,0.01137617,87903.0,87890.0,0.00572]
[1766129709917,0.01137604,87904.0,87890.0,0.00572]
[1766129710115,0.01137578,87906.0,87890.0,0.00572]
[1766129710330,0.01137591,87905.0,87890.0,0.00572]
[1766129711288,0.01137604,87904.0,87890.0,0.00572]
[1766129711485,0.01137552,87908.0,87890.0,0.00572]
[1766129711691,0.01137591,87905.0,87890.0,0.00572]
[1766129712116,0.01137578,87906.0,87890.0,0.00572]
[1766129712324,0.01137578,87906.0,87891.0,0.00572]
[1766129712619,0.01137591,87905.0,87891.0,0.00572]
[1766129712824,0.01137565,87907.0,87891.0,0.00572]
[1766129713030,0.01709539,87909.0,87891.0,0.00572]
[1766129713225,0.01137565,87907.0,87888.0,0.00010952]
[1766129713560,0.23889463,87905.0,87892.0,0.00572]
[1766129713699,0.28103738,87909.0,87892.0,0.00572]
[1766129714129,0.01137578,87906.0,87892.0,0.00572]
[1766129714282,0.01137552,87908.0,87892.0,0.00572]
[1766129714485,0.01137591,87905.0,87892.0,0.00572]
[1766129715019,0.26966199,87909.0,87892.0,0.00572]
[1766129715020,0.00572,87909.0,87905.0,0.0011]
[1766129715361,0.00572,87909.0,87898.0,0.11741]
[1766129716220,0.00462,87909.0,87899.0,0.11741]
[1766129716420,0.00462,87909.0,87897.0,0.11741]
[1766129716625,0.00572,87914.0,87897.0,0.11741]
[1766129716953,0.00572,87918.0,87897.0,0.11741]
[1766129717222,0.00572,87918.0,87900.0,0.91048505]
[1766129717430,0.00572,87918.0,87903.0,0.11741]
[1766129718207,0.01137449,87916.0,87902.0,0.11998]
[1766129718367,0.01709423,87918.0,87902.0,0.11998]
[1766129718568,0.01137449,87916.0,87902.0,0.11998]
[1766129718817,0.00572,87918.0,87902.0,0.11998]
[1766129719023,0.00572,87918.0,87902.0,0.23739]
[1766129719217,0.01709423,87918.0,87902.0,0.23739]
[1766129720028,0.01709423,87918.0,87873.0,0.11998]
[1766129720029,0.22862706,87902.0,87873.0,0.11998]
[1766129720224,0.22862706,87902.0,87878.0,0.00572]
[1766129720225,0.01137695,87897.0,87878.0,0.00572]
[1766129720429,0.01137708,87896.0,87880.0,0.11998]
[1766129720767,0.01137734,87894.0,87879.0,0.03643153]
[1766129720881,0.00010946,87897.0,87881.0,0.00572]
[1766129721084,0.01137708,87896.0,87881.0,0.00572]
[1766129721291,0.00010946,87897.0,87881.0,0.00572]
[1766129721524,0.00010946,87897.0,87881.0,0.12313]
[1766129721746,0.00010946,87897.0,87881.0,0.15956153]
[1766129722502,0.00010946,87897.0,87884.0,0.11998]
[1766129722822,0.00010946,87897.0,87881.0,0.05353055]
[1766129723047,0.00010946,87897.0,87882.0,0.23739]
[1766129723246,0.00010946,87897.0,87887.0,0.01137824]
[1766129723444,0.00572,87911.0,87888.0,0.00572]
[1766129723608,0.01709514,87911.0,87888.0,0.00582946]
[1766129723817,0.01137527,87910.0,87890.0,0.11741]
[1766129724609,0.01137436,87917.0,87896.0,0.11741]
[1766129724812,0.01137436,87917.0,87895.0,0.03643153]
[1766129724813,0.01137449,87916.0,87898.0,0.11741]
[1766129725146,0.01709436,87917.0,87898.0,0.11741]
[1766129725369,0.01709436,87917.0,87899.0,0.11741]
[1766129726090,0.00572,87917.0,87899.0,0.11741]
[1766129726397,0.00572,87917.0,87901.0,0.23739]
[1766129726598,0.00572,87917.0,87902.0,0.23739]
[1766129726813,0.01137358,87923.0,87903.0,0.00572]
[1766129727009,0.00572,87923.0,87904.0,0.11741]
[1766129727207,0.00572,87923.0,87906.0,0.11998]
[1766129727387,0.01137268,87930.0,87912.0,0.11998]
[1766129727711,0.01137281,87929.0,87912.0,0.24311]
[1766129727893,0.01137307,87927.0,87912.0,0.00572]
[1766129728093,0.01137294,87928.0,87912.0,0.00572]
[1766129728291,0.01137281,87929.0,87912.0,0.00572]
[1766129728497,0.01137307,87927.0,87912.0,0.00572]
[1766129728695,0.01137294,87928.0,87912.0,0.00572]
[1766129728915,0.01137268,87930.0,87912.0,0.00572]
[1766129729154,0.01137281,87929.0,87912.0,0.00572]
[1766129729802,0.01137268,87930.0,87912.0,0.00572]
[1766129729941,0.01709255,87931.0,87912.0,0.00572]
[1766129730352,0.00572,87931.0,87914.0,0.11998]
[1766129730564,0.2388039,87939.0,87912.0,0.00572]
[1766129730565,0.02454927,87939.0,87921.0,0.11741]
[1766129730769,0.01637364,87938.0,87922.0,0.00572]
[1766129730967,0.0113719,87936.0,87922.0,0.00572]
[1766129731177,0.03643153,87927.0,87911.0,0.00572]
[1766129731378,0.01137358,87923.0,87911.0,0.00572]
[1766129731622,0.01137384,87921.0,87911.0,0.00572]
[1766129732053,0.01137371,87922.0,87911.0,0.00572]
[1766129732321,0.01173857,87923.0,87911.0,0.00572]
[1766129732749,0.01137384,87921.0,87911.0,0.00572]
[1766129733063,0.01173857,87923.0,87911.0,0.00572]
[1766129733276,0.01137371,87922.0,87911.0,0.00572]
[1766129733624,0.00036499,87923.0,87911.0,0.00572]
[1766129733834,0.01173857,87923.0,87911.0,0.00572]
[1766129734036,0.01137371,87922.0,87911.0,0.00572]
[1766129734444,0.23884824,87922.0,87911.0,0.00572]
[1766129734661,0.01137371,87922.0,87911.0,0.00572]
[1766129734856,0.01137384,87921.0,87903.0,0.11741]
[1766129735057,0.01137384,87921.0,87904.0,0.00572]
[1766129735637,0.01173857,87923.0,87903.0,0.11741]
[1766129735844,0.00036499,87923.0,87904.0,0.00572]
[1766129736392,0.00036499,87923.0,87904.0,0.11883]
[1766129737010,0.01173857,87923.0,87904.0,0.11883]
[1766129737168,0.01137371,87922.0,87904.0,0.11883]
[1766129737374,0.01173857,87923.0,87904.0,0.11883]
[1766129737575,0.00036499,87923.0,87904.0,0.11883]
[1766129737781,0.00036499,87923.0,87907.0,0.11311]
[1766129738000,0.00036499,87923.0,87908.0,0.11311]
[1766129738603,0.00036499,87923.0,87909.0,0.11311]
[1766129739234,0.00036499,87923.0,87912.0,0.11502]
[1766129739430,0.00036499,87923.0,87913.0,0.12675985]
[1766129739873,0.00036499,87923.0,87915.0,0.11311]
[1766129740079,0.00036499,87923.0,87916.0,0.12675939]
[1766129740256,0.00036499,87923.0,87916.0,0.11311]
[1766129741082,0.00036499,87923.0,87916.0,0.11502]
[1766129741203,0.00036499,87923.0,87917.0,0.11311]
[1766129741607,4.99e-06,87923.0,87920.0,0.11311]
[1766129741832,4.99e-06,87923.0,87922.0,0.22813]
[1766129743071,4.99e-06,87923.0,87922.0,0.05128]
[1766129743243,4.99e-06,87923.0,87922.0,0.05044]
[1766129743447,4.99e-06,87923.0,87922.0,0.27857]
[1766129743690,4.99e-06,87923.0,87922.0,0.22813]
[1766129743911,4.99e-06,87923.0,87922.0,0.27941]
[1766129744102,4.99e-06,87923.0,87922.0,0.50688435]
[1766129744373,4.99e-06,87923.0,87922.0,0.27941]
[1766129745565,4.99e-06,87923.0,87922.0,0.50688435]
[1766129746138,4.99e-06,87923.0,87922.0,0.27941]
[1766129746943,4.99e-06,87923.0,87922.0,0.27831]
[1766129748359,4.99e-06,87923.0,87922.0,0.22703]
[1766129748614,4.99e-06,87923.0,87922.0,0.27831]
[1766129752450,4.99e-06,87923.0,87922.0,0.05128]
[1766129752667,4.99e-06,87923.0,87920.0,0.11311]
[1766129752876,4.99e-06,87923.0,87922.0,0.22813]
[1766129755146,4.99e-06,87923.0,87921.0,0.00572]
[1766129755405,4.99e-06,87923.0,87922.0,0.22813]
[1766129756518,4.99e-06,87923.0,87922.0,0.24177846]
[1766129756748,4.99e-06,87923.0,87922.0,0.22813]
[1766129761950,4.99e-06,87923.0,87922.0,0.00572]
[1766129765908,4.99e-06,87923.0,87922.0,0.24244]
[1766129766275,4.99e-06,87923.0,87922.0,0.1298]
[1766129766474,4.99e-06,87923.0,87922.0,0.00572]
[1766129767266,0.01137164,87938.0,87922.0,0.00572]
[1766129767465,0.01148109,87938.0,87922.0,0.00572]
[1766129768479,0.0113719,87936.0,87922.0,0.00572]
[1766129768678,0.01148109,87938.0,87922.0,0.00572]
[1766129768995,0.00010945,87938.0,87922.0,0.00572]
[1766129769727,0.00010945,87938.0,87930.0,0.12408]
[1766129769929,0.00174165,87947.0,87935.0,0.23672]
[1766129770129,0.00174165,87947.0,87938.0,0.000109]
[1766129770549,0.011371,87943.0,87932.0,0.11264]
[1766129770734,0.01137074,87945.0,87931.0,0.00572]
[1766129771045,0.01137061,87946.0,87931.0,0.00572]
[1766129771459,0.01137087,87944.0,87931.0,0.00572]
[1766129772026,0.011371,87943.0,87931.0,0.00572]
[1766129772233,0.01137087,87944.0,87931.0,0.00572]
[1766129772437,0.01137074,87945.0,87931.0,0.00572]
[1766129773011,0.01137138,87940.0,87931.0,0.00572]
[1766129773214,0.23879398,87942.0,87932.0,0.00572]
[1766129773425,0.01137126,87941.0,87932.0,0.00010945]
[1766129773638,0.01137151,87939.0,87932.0,0.00010945]
[1766129773843,0.01137164,87938.0,87932.0,0.00010945]
[1766129774045,0.23880461,87938.0,87928.0,0.00572]
[1766129774252,0.01137177,87937.0,87928.0,0.00572]
[1766129774508,0.0113719,87936.0,87928.0,0.00572]
[1766129774679,0.01137177,87937.0,87928.0,0.00572]
[1766129774930,0.00010937,87938.0,87928.0,0.00572]
[1766129778096,0.01148101,87938.0,87928.0,0.00572]
[1766129778314,0.01137177,87937.0,87928.0,0.00572]
[1766129778517,0.01148101,87938.0,87928.0,0.00572]
[1766129778715,0.01137177,87937.0,87928.0,0.00572]
[1766129779341,0.01148101,87938.0,87928.0,0.00572]
[1766129780140,0.01137177,87937.0,87928.0,0.00572]
[1766129780420,0.01148101,87938.0,87928.0,0.00572]
[1766129780934,0.0113719,87936.0,87928.0,0.00572]
[1766129782184,0.01137203,87935.0,87928.0,0.00572]
[1766129782400,0.0113719,87936.0,87928.0,0.00572]
[1766129782598,0.01137294,87928.0,87922.0,0.00572]
[1766129782799,0.01137242,87932.0,87928.0,0.0011]
[1766129783001,0.01137268,87930.0,87913.0,0.11836]
[1766129783184,0.01137242,87932.0,87913.0,0.11836]
[1766129783380,0.01137242,87932.0,87926.0,1.53e-06]
[1766129783723,0.01137229,87933.0,87926.0,1.53e-06]
[1766129785242,0.01137203,87935.0,87926.0,1.53e-06]
[1766129785419,0.00572,87936.0,87926.0,1.53e-06]
[1766129785595,0.00572,87936.0,87926.0,0.11264153]
[1766129785778,0.00010937,87938.0,87927.0,0.00572]
[1766129786272,0.00010937,87938.0,87929.0,0.11264]
[1766129786443,0.00010937,87938.0,87930.0,0.12628721]
[1766129787031,0.00010937,87938.0,87930.0,0.11264]
[1766129787792,0.00010937,87938.0,87931.0,0.11264]
[1766129788195,0.00010937,87938.0,87931.0,0.12408]
[1766129788448,0.00010937,87938.0,87932.0,0.11264]
[1766129792496,0.00010937,87938.0,87933.0,0.11264]
[1766129792702,0.00010937,87938.0,87934.0,0.00572]
[1766129794121,0.00010937,87938.0,87934.0,0.11836]
[1766129794466,0.00174165,87947.0,87934.0,0.11836]
[1766129796738,0.01311213,87947.0,87934.0,0.11836]
[1766129797198,0.00174165,87947.0,87934.0,0.11836]
[1766129799837,0.00174165,87947.0,87936.0,0.11273]
[1766129800000,0.00174165,87947.0,87937.0,0.11273]
[1766129800205,0.00174165,87947.0,87938.0,0.11273]
[1766129801023,0.00174165,87947.0,87938.0,0.12345]
[1766129801225,0.00174165,87947.0,87941.0,0.11273]
[1766129801429,0.00174165,87947.0,87941.0,0.11845]
[1766129802215,0.00174165,87947.0,87946.0,0.12345]
[1766129802216,1.65e-06,87947.0,87946.0,0.12345]
[1766129802420,1.65e-06,87947.0,87946.0,0.23618]
[1766129803398,0.0504,87963.0,87955.0,0.12345]
[1766129803627,0.0004,87967.0,87959.0,0.01136893]
[1766129803835,0.00010941,87967.0,87964.0,0.12345]
[1766129803988,0.00572,87985.0,87964.0,0.12345]
[1766129803989,0.01708557,87985.0,87965.0,0.11845]
[1766129804197,0.01708557,87985.0,87968.0,0.12345]
[1766129804198,0.23868057,87984.0,87968.0,0.12345]
[1766129804568,0.00068278,87969.0,87968.0,0.12235]
[1766129805336,7.8e-07,87969.0,87968.0,0.12235]
[1766129805879,7.8e-07,87969.0,87968.0,0.24872132]
[1766129806110,0.01136376,87999.0,87970.0,0.11273]
[1766129806323,0.00050939,87996.0,87974.0,0.11273]
[1766129806530,0.01187354,87996.0,87977.0,0.23618]
[1766129806725,0.01187354,87996.0,87978.0,0.11845]
[1766129806726,0.01136428,87995.0,87978.0,0.11845]
[1766129807038,0.01187354,87996.0,87978.0,0.11845]
[1766129807230,0.01136428,87995.0,87978.0,0.11845]
[1766129807436,0.01136454,87993.0,87978.0,0.005038]
[1766129807875,0.01136441,87994.0,87979.0,0.11273]
[1766129808080,0.01136428,87995.0,87979.0,0.11273]
[1766129808256,0.00050939,87996.0,87981.0,0.23618]
[1766129808763,0.01187354,87996.0,87981.0,0.23618]
[1766129808962,0.01136428,87995.0,87981.0,0.23618]
[1766129809122,0.01187354,87996.0,87981.0,0.23618]
[1766129809728,0.01136466,87992.0,87973.0,0.03643153]
[1766129809926,0.01136454,87993.0,87946.0,0.05001839]
[1766129809927,1.0006395,87983.0,87974.0,0.00572]
[1766129810128,0.01136557,87985.0,87975.0,0.00572]
[1766129810525,0.0113657,87984.0,87975.0,0.00572]
[1766129810726,0.01136557,87985.0,87975.0,0.00572]
[1766129810930,0.00572,87991.0,87976.0,0.14916153]
[1766129811129,0.00050939,87996.0,87976.0,0.03643153]
[1766129811326,0.00050939,87996.0,87977.0,0.11273]
[1766129811755,0.00050939,87996.0,87979.0,0.11273]
[1766129811962,0.00050939,87996.0,87981.0,0.11273]
[1766129812161,0.22728564,87995.0,87982.0,0.00572]
[1766129812504,0.00050939,87996.0,87982.0,0.2419]
[1766129812505,0.00043442,87983.0,87982.0,0.2419]
[1766129812723,0.00050939,87996.0,87984.0,0.11273]
[1766129813251,0.00050939,87996.0,87991.0,0.03643153]
[1766129817230,0.00050939,87996.0,87988.0,0.00572]
[1766129817994,0.01136428,87995.0,87988.0,0.00572]
[1766129818266,0.00024819,87991.0,87988.0,0.00572]
[1766129818818,0.00024819,87991.0,87989.0,0.00572]
[1766129819031,0.00024819,87991.0,87977.0,0.11981]
[1766129819234,0.00024819,87991.0,87979.0,0.11981]
[1766129819415,0.00024819,87991.0,87982.0,0.11981]
[1766129819859,0.00024819,87991.0,87985.0,0.11981]
[1766129820203,0.00050939,87996.0,87991.0,0.000248]
[1766129820405,3.9e-07,87996.0,87991.0,0.000248]
[1766129820606,3.9e-07,87996.0,87990.0,0.03643153]
[1766129820993,3.9e-07,87996.0,87994.0,0.11683]
[1766129821193,3.9e-07,87996.0,87995.0,0.11981]
[1766129821801,3.9e-07,87996.0,87995.0,0.23664]
[1766129823503,3.9e-07,87996.0,87995.0,0.236131]
[1766129823906,3.9e-07,87996.0,87995.0,0.00572]
[1766129825629,3.9e-07,87996.0,87990.0,0.03643153]
[1766129825987,3.9e-07,87996.0,87975.0,0.01136686]
[1766129825988,3.9e-07,87996.0,87975.0,0.04552]
[1766129826190,0.01136428,87995.0,87973.0,0.03643153]
[1766129826394,0.01136454,87996.0,87976.0,0.00572]
[1766129826599,0.01136428,87995.0,87976.0,0.00572]
[1766129827018,0.01136454,87993.0,87976.0,0.00572]
[1766129827270,3.9e-07,87996.0,87976.0,0.00572]
[1766129827475,3.9e-07,87996.0,87987.0,0.03643153]
[1766129827652,3.9e-07,87996.0,87990.0,0.11861]
[1766129829201,0.01136324,88003.0,87988.0,0.00572]
[1766129829202,0.04552,88010.0,87993.0,0.11369]
[1766129829410,0.00572,88012.0,87994.0,0.23802]
[1766129829606,0.01708208,88012.0,87995.0,0.12433]
[1766129829822,0.01136247,88009.0,87995.0,0.00572]
[1766129830025,0.2386131,88009.0,87995.0,0.00572]
[1766129830247,0.99933012,88005.0,87978.0,0.11369]
[1766129830381,0.99933012,88005.0,87979.0,0.00572]
[1766129830382,0.01136376,87999.0,87979.0,0.00572]
[1766129830584,0.01136376,87999.0,87980.0,0.00572]
[1766129830823,0.99933012,88000.0,87980.0,0.12433]
[1766129831033,0.00572,88004.0,87987.0,0.15504153]
[1766129831208,0.00572,88004.0,87989.0,0.11861]
[1766129831588,0.00010935,88005.0,87988.0,0.00572]
[1766129831589,0.00010935,88005.0,87992.0,0.22729333]
[1766129831802,0.01708066,88023.0,88004.0,0.11971]
[1766129832011,0.00076456,88011.0,88005.0,0.00572]
[1766129832250,0.00024814,88007.0,88005.0,0.00572]
[1766129832450,0.00024814,88007.0,87988.0,0.11369]
[1766129832676,0.00024814,88007.0,87989.0,0.00572]
[1766129833094,0.00024814,88007.0,87990.0,0.00572]
[1766129833632,0.00024814,88007.0,87974.0,0.11369]
[1766129833633,0.01136376,87999.0,87974.0,0.11369]
[1766129833828,0.9082478,87990.0,87975.0,0.20628153]
[1766129834058,0.01136299,88005.0,87990.0,0.0011]
[1766129834257,0.01136311,88004.0,87990.0,0.0011]
[1766129834599,0.01136337,88002.0,87989.0,0.04215153]
[1766129835051,0.0113635,88001.0,87989.0,0.04215153]
[1766129835665,0.22727272,88000.0,87989.0,0.00572]
[1766129835801,0.01136389,87998.0,87989.0,0.00572]
[1766129836188,0.01136389,87998.0,87988.0,0.00572]
[1766129836389,0.01136311,88004.0,87988.0,0.00572]
[1766129836622,0.01136363,88000.0,87988.0,0.00572]
[1766129836868,0.01136337,88002.0,87988.0,0.00572]
[1766129837406,0.01136286,88006.0,87989.0,0.03643153]
[1766129837603,0.0113635,88001.0,87988.0,1.53e-06]
[1766129837810,0.01136299,88005.0,87988.0,1.53e-06]
[1766129837811,0.01136337,88002.0,87988.0,1.53e-06]
[1766129838030,0.01136363,88000.0,87988.0,1.53e-06]
[1766129838226,0.01136299,88005.0,87989.0,0.03643153]
[1766129838427,0.01136286,88006.0,87989.0,0.03643153]
[1766129838847,0.01733087,88007.0,87989.0,0.03643153]
[1766129839106,0.00024814,88007.0,87990.0,0.24593791]
[1766129839230,0.00024814,88007.0,88003.0,0.03643153]
[1766129839633,1.4e-07,88007.0,88003.0,0.03643153]
[1766129839841,1.4e-07,88007.0,88004.0,0.11861]
[1766129840042,1.4e-07,88007.0,88005.0,0.11369]
[1766129840663,0.0004,88017.0,88007.0,0.11861]
[1766129840838,0.0004,88017.0,88011.0,0.00075944]
[1766129841177,0.00044553,88017.0,88009.0,0.00572]
[1766129841354,0.01180697,88017.0,88009.0,0.00572]
[1766129841720,0.00044553,88017.0,88003.0,0.03643153]